bitfinex-derivatives/quotes_ETHF0:USTF0_20240920
["timestamp","ask_amount","ask_price","bid_price","bid_amount"]
[1726848404903,0.80461,2559.3,2559.1,0.39073]
[1726848405186,3.2078,2559.7,2559.0,3.908]
[1726848405387,3.2078,2559.7,2559.1,0.97685]
[1726848405790,3.2078,2559.4,2559.3,0.39071]
[1726848406791,3.2078,2559.7,2559.6,0.39066]
[1726848407285,3.59845,2559.7,2559.5,0.39067]
[1726848407589,3.2078,2559.7,2558.9,5.849]
[1726848407779,3.5985,2559.4,2559.2,0.39071]
[1726848407986,3.2078,2559.4,2559.3,0.39071]
[1726848408283,0.39067,2559.6,2559.4,0.39069]
[1726848408492,0.39067,2559.6,2559.0,0.97689]
[1726848408794,0.39067,2559.6,2559.4,0.39069]
[1726848409197,3.2078,2559.7,2559.5,3.9072]
[1726848409380,0.39067,2559.6,2559.4,0.39068]
[1726848409886,0.39068,2559.5,2559.3,0.3907]
[1726848410292,0.4102,2559.4,2559.3,0.3907]
[1726848411086,0.4102,2559.4,2558.9,6.82591]
[1726848411288,0.4102,2559.4,2559.3,0.39071]
[1726848411591,0.39071,2559.3,2559.1,0.39073]
[1726848412086,3.618,2559.4,2559.1,0.39073]
[1726848412282,4.0087,2559.4,2559.2,0.39071]
[1726848412477,0.39072,2559.3,2559.1,0.39073]
[1726848412683,4.0087,2559.4,2559.2,0.39072]
[1726848412983,3.618,2559.4,2559.3,0.39071]
[1726848413591,3.618,2559.4,2558.9,6.82692]
[1726848413813,3.618,2559.4,2559.3,0.39071]
[1726848414185,4.00869,2559.4,2559.3,0.39071]
[1726848414403,3.618,2559.4,2559.3,0.39071]
[1726848415401,4.0087,2559.4,2559.2,0.39072]
[1726848415591,3.618,2559.4,2559.3,0.39071]
[1726848416291,4.00869,2559.4,2559.2,0.39071]
[1726848416497,4.00869,2559.4,2558.9,6.82692]
[1726848416498,3.618,2559.4,2559.3,0.39071]
[1726848417183,4.00869,2559.4,2559.2,0.39071]
[1726848417389,3.618,2559.4,2559.3,0.39071]
[1726848418386,7.91589,2559.4,2559.3,0.39071]
[1726848418596,7.91589,2559.4,2558.9,0.97693]
[1726848418789,4.00869,2559.4,2559.3,0.39071]
[1726848419195,8.50194,2559.4,2559.0,0.39074]
[1726848419397,1.36772,2558.9,2558.6,0.3908]
[1726848419696,4.18481,2558.7,2558.3,0.39085]
[1726848419897,3.2078,2558.4,2558.3,0.39085]
[1726848420194,3.2078,2558.4,2558.0,5.10827]
[1726848420195,3.59866,2558.4,2558.2,0.39087]
[1726848420393,3.2078,2558.4,2558.3,0.39086]
[1726848420589,3.2078,2558.4,2558.3,1.36802]
[1726848420803,0.4506,2558.6,2558.5,0.39083]
[1726848421889,3.2078,2558.8,2558.7,0.3908]
[1726848422690,3.59855,2559.1,2558.6,0.3904]
[1726848422891,3.59855,2559.1,2558.5,0.97708]
[1726848423194,0.8726,2559.2,2558.7,0.39079]
[1726848423195,3.2078,2558.8,2558.7,0.39079]
[1726848423395,3.2078,2558.8,2558.7,0.3908]
[1726848424393,3.59859,2558.8,2558.5,0.39081]
[1726848424601,3.2078,2558.8,2558.6,0.39081]
[1726848424794,3.59859,2558.8,2558.6,0.3908]
[1726848424999,0.3908,2558.7,2558.5,0.39082]
[1726848425193,0.3908,2558.7,2558.4,0.39083]
[1726848425194,0.4595,2558.6,2558.4,0.39083]
[1726848425400,3.2078,2558.8,2558.2,1.36757]
[1726848425401,3.2078,2558.8,2558.7,0.3908]
[1726848427347,3.2078,2558.8,2558.3,1.39393]
[1726848427348,3.59859,2558.8,2558.3,1.39393]
[1726848427510,3.2078,2558.8,2558.1,4.18503]
[1726848427697,3.2078,2558.4,2558.3,0.39085]
[1726848428603,3.59865,2558.4,2558.2,0.39086]
[1726848428807,3.2078,2558.4,2557.7,4.131]
[1726848429012,3.2078,2557.8,2557.7,0.39095]
[1726848429302,2.28421,2558.5,2557.7,0.39095]
[1726848429303,3.2078,2557.9,2557.7,0.39095]
[1726848429507,0.4375,2557.8,2557.6,5.774]
[1726848429706,0.39088,2558.2,2558.1,0.39089]
[1726848429707,3.2078,2558.2,2558.1,0.39089]
[1726848430217,3.2078,2558.2,2557.9,0.39091]
[1726848430400,3.59868,2558.2,2557.9,0.39091]
[1726848430597,3.2078,2558.2,2558.0,0.3909]
[1726848430804,3.2078,2558.2,2557.7,0.97739]
[1726848430995,3.2078,2558.2,2558.0,0.3909]
[1726848431202,3.2078,2558.2,2558.1,0.39089]
[1726848431401,3.2078,2558.2,2557.7,2.23329]
[1726848431609,3.2078,2558.2,2558.1,0.39089]
[1726848432703,3.2078,2558.2,2558.0,0.3909]
[1726848432999,3.59868,2558.2,2557.9,0.39091]
[1726848433200,3.2078,2558.2,2558.0,0.39091]
[1726848433401,3.2078,2558.2,2557.6,5.774]
[1726848433608,3.2078,2557.8,2557.7,0.39094]
[1726848434406,3.2078,2557.8,2557.7,4.30054]
[1726848434813,3.2078,2558.2,2558.0,0.3909]
[1726848435207,3.2078,2558.2,2558.1,0.39089]
[1726848435405,3.2078,2558.2,2557.7,0.97737]
[1726848435603,3.2078,2558.2,2558.1,0.39089]
[1726848436116,3.2078,2558.5,2558.4,0.39084]
[1726848437421,7.1166,2558.5,2558.3,0.39086]
[1726848437721,3.2078,2558.5,2558.4,0.39084]
[1726848439204,1.28706,2558.5,2558.4,7.231]
[1726848439421,3.2078,2559.1,2559.0,0.39075]
[1726848440109,5.53654728,2559.4,2559.2,0.39072]
[1726848440314,4.0151,2559.4,2559.2,0.39072]
[1726848440620,7.9223,2559.4,2559.2,0.39072]
[1726848440811,7.5316,2559.4,2559.2,0.39072]
[1726848441013,3.6244,2559.4,2559.2,0.39072]
[1726848441210,4.01509,2559.4,2559.2,0.39072]
[1726848441410,4.01509,2559.4,2559.1,0.39073]
[1726848441610,5.53653728,2559.4,2559.1,0.39073]
[1726848442012,4.01509,2559.4,2559.1,0.39073]
[1726848442413,5.53653728,2559.4,2559.1,0.39073]
[1726848442616,5.42864728,2559.3,2558.6,3.2078]
[1726848442931,5.70611728,2559.1,2558.4,5.775]
[1726848443110,3.59859,2558.8,2558.6,0.39081]
[1726848443324,0.4162,2558.7,2558.0,3.6626]
[1726848443524,0.8556,2558.7,2558.3,0.39085]
[1726848443714,3.59864,2558.5,2558.3,0.39085]
[1726848444021,3.2078,2558.5,2558.0,3.2078]
[1726848444219,3.2078,2558.5,2557.8,6.75232]
[1726848444220,3.2078,2558.2,2558.1,0.39088]
[1726848444408,3.2078,2558.2,2558.0,0.3909]
[1726848444409,3.59868,2558.2,2558.0,0.3909]
[1726848444811,3.59868,2558.2,2557.9,0.39091]
[1726848444812,0.39089,2558.1,2557.9,0.39091]
[1726848445019,3.2078,2558.2,2557.9,0.39091]
[1726848445020,0.4253,2558.0,2557.9,0.39091]
[1726848446525,4.72924728,2558.5,2558.1,0.39089]
[1726848446716,0.4253,2558.4,2558.1,0.39089]
[1726848446919,0.39086,2558.3,2558.0,0.3909]
[1726848447220,3.59868,2558.2,2557.9,0.39091]
[1726848447424,3.59868,2558.2,2557.8,5.775]
[1726848447425,0.3909,2558.1,2557.8,6.16593]
[1726848447629,0.8208,2558.1,2557.9,0.39092]
[1726848447809,0.82079,2558.1,2557.9,0.39092]
[1726848448018,0.4299,2558.1,2558.0,0.39091]
[1726848448229,0.4299,2558.1,2557.9,0.39091]
[1726848448823,0.4299,2558.1,2557.8,5.775]
[1726848449145,0.4299,2558.1,2557.9,0.39091]
[1726848449421,3.59868,2558.2,2558.1,0.39089]
[1726848449422,3.2078,2558.2,2558.1,0.39089]
[1726848449921,3.2078,2558.6,2558.5,0.39083]
[1726848450133,3.2078,2558.6,2558.2,0.9772]
[1726848450325,3.2078,2558.6,2558.1,0.97722]
[1726848450619,3.2078,2558.6,2558.1,0.97723]
[1726848451020,3.2078,2558.6,2558.5,0.39083]
[1726848451824,0.4391,2558.9,2558.8,0.39078]
[1726848452027,0.4391,2558.9,2558.3,0.97714]
[1726848452329,0.4391,2558.9,2558.8,0.39078]
[1726848452827,1.52144728,2559.2,2559.1,0.39074]
[1726848453013,3.2078,2559.4,2558.7,0.3904]
[1726848453429,3.2078,2559.4,2559.2,0.39072]
[1726848453627,3.2078,2559.4,2559.3,0.39071]
[1726848454430,3.2078,2559.4,2559.2,0.39071]
[1726848454826,3.2078,2559.4,2559.3,0.39071]
[1726848455126,5.14514728,2559.7,2559.3,0.39071]
[1726848455330,5.14514728,2559.7,2559.4,0.39068]
[1726848455724,3.6237,2559.7,2559.4,0.39068]
[1726848456425,3.6237,2559.7,2558.9,4.5214]
[1726848456625,1.52144728,2560.0,2559.3,0.97678]
[1726848456819,5.73908303,2560.3,2559.4,9.7462]
[1726848456820,2.34594728,2560.2,2559.4,9.7462]
[1726848457025,2.34594728,2560.2,2559.9,0.39061]
[1726848457424,0.8245,2560.2,2559.9,0.39061]
[1726848457733,0.8245,2560.2,2559.4,9.7462]
[1726848457926,0.8245,2560.2,2559.9,0.39061]
[1726848458423,0.8245,2560.2,2559.4,9.7462]
[1726848458424,4.7309,2560.2,2559.7,0.39064]
[1726848458626,2.73651728,2560.2,2559.8,0.39063]
[1726848458823,3.2078,2560.0,2559.8,0.39063]
[1726848459021,3.2078,2560.0,2559.4,9.3558]
[1726848459223,3.5984,2560.0,2559.6,0.39065]
[1726848459428,3.2078,2560.0,2559.4,9.3558]
[1726848459646,0.39062,2559.9,2559.5,0.39066]
[1726848459823,0.39062,2559.9,2559.5,0.39068]
[1726848460029,3.2078,2560.0,2559.1,6.1304]
[1726848460264,3.82117012,2560.2,2559.6,3.5982]
[1726848460265,0.4187,2560.2,2559.6,3.5982]
[1726848460456,4.72924728,2560.6,2559.7,0.7988]
[1726848460636,4.72924728,2560.6,2560.4,0.39054]
[1726848460637,0.4466,2560.5,2560.4,0.39054]
[1726848461230,0.4357,2560.7,2560.6,0.39051]
[1726848461537,3.2078,2560.9,2560.8,0.39048]
[1726848462726,3.2078,2560.9,2560.7,0.39049]
[1726848462928,3.2078,2560.9,2560.2,3.5982]
[1726848463327,3.2078,2560.9,2560.5,0.39052]
[1726848463523,0.39048,2560.8,2560.5,0.39052]
[1726848463746,3.59827,2560.9,2560.5,0.39052]
[1726848463930,3.2078,2560.9,2560.6,0.3905]
[1726848464233,3.59827,2560.9,2560.5,0.39051]
[1726848464439,3.59827,2560.9,2560.1,0.97647]
[1726848464440,3.2078,2560.9,2560.6,0.39051]
[1726848465234,3.59826,2560.9,2560.6,0.39051]
[1726848465432,3.2078,2560.9,2560.1,0.97647]
[1726848465638,3.2078,2560.9,2560.3,0.97636]
[1726848465830,0.4466,2561.0,2560.6,0.97625]
[1726848466029,0.4466,2561.0,2560.9,0.39046]
[1726848467655,3.2078,2561.6,2560.9,9.9048]
[1726848467841,0.4089,2561.5,2560.8,4.5744]
[1726848468048,0.79928,2561.5,2561.2,0.39041]
[1726848468739,0.79928,2561.5,2561.2,0.39042]
[1726848468940,0.4089,2561.5,2561.3,0.3904]
[1726848469340,0.4089,2561.5,2561.4,0.39039]
[1726848469634,0.4089,2561.5,2561.3,0.3904]
[1726848469826,0.4089,2561.5,2560.9,1.39995]
[1726848469827,0.4089,2561.5,2560.9,0.4238]
[1726848470032,0.79927,2561.5,2561.2,0.39041]
[1726848470433,0.4089,2561.5,2561.3,0.3904]
[1726848470635,0.4089,2561.5,2561.4,0.39039]
[1726848470936,0.4089,2561.5,2561.3,0.3904]
[1726848471164,0.4089,2561.5,2561.3,0.39039]
[1726848471736,0.4089,2561.5,2561.4,0.39039]
[1726848471939,0.442,2561.7,2561.2,0.97604]
[1726848472284,0.442,2561.7,2561.6,0.39036]
[1726848473033,3.2078,2561.9,2561.2,0.97604]
[1726848473536,3.59812,2561.9,2561.2,0.97604]
[1726848473733,3.59812,2561.9,2561.6,0.39035]
[1726848474039,3.2078,2561.9,2561.1,3.6441]
[1726848474232,3.59812,2561.9,2561.6,0.39035]
[1726848474446,0.39033,2561.8,2561.5,0.39036]
[1726848474734,0.39034,2561.8,2561.1,3.6441]
[1726848474936,0.39034,2561.8,2561.5,0.39036]
[1726848475138,3.2078,2561.6,2561.4,0.39038]
[1726848475545,3.2078,2561.6,2561.3,5.736]
[1726848475741,3.59816,2561.6,2561.4,0.39038]
[1726848475933,3.2078,2561.6,2561.4,0.39038]
[1726848476129,3.2078,2561.6,2561.3,5.736]
[1726848476130,3.2078,2561.6,2561.5,0.39037]
[1726848476335,3.59816,2561.6,2561.4,0.39038]
[1726848476642,3.2078,2561.6,2561.5,0.39037]
[1726848477044,3.2078,2561.9,2561.7,0.39034]
[1726848477244,3.59812,2561.9,2561.4,0.97597]
[1726848477448,3.2078,2561.9,2561.8,0.39033]
[1726848478139,0.4386,2562.0,2561.9,0.39031]
[1726848478644,0.8289,2562.0,2561.9,0.39031]
[1726848478845,0.4386,2562.0,2561.9,0.39031]
[1726848479246,0.8289,2562.0,2561.9,0.39031]
[1726848479448,0.4386,2562.0,2561.9,0.39031]
[1726848480850,0.8289,2562.0,2561.9,0.39031]
[1726848481059,0.4386,2562.0,2561.9,0.39031]
[1726848481246,0.4386,2562.0,2561.4,4.37646305]
[1726848481247,10.3418,2562.0,2561.8,0.39032]
[1726848481546,0.39034,2561.8,2561.7,0.39034]
[1726848481992,0.39035,2561.7,2561.6,0.39035]
[1726848482151,0.97587,2561.7,2561.1,0.97609]
[1726848482341,0.97587,2561.7,2561.0,3.5982]
[1726848482342,0.39039,2561.4,2561.3,0.39039]
[1726848482539,3.2078,2561.6,2561.0,3.2078]
[1726848482737,0.4565,2561.3,2561.2,0.39042]
[1726848483545,3.2078,2561.6,2561.2,0.97605]
[1726848483755,3.2078,2561.6,2561.5,0.39037]
[1726848484058,0.39034,2561.7,2561.2,0.97603]
[1726848484351,0.39034,2561.7,2561.5,0.39036]
[1726848484546,0.39034,2561.7,2561.1,0.97609]
[1726848484856,4.1021,2561.9,2561.2,0.97605]
[1726848485046,0.39033,2561.8,2561.2,0.97605]
[1726848485248,0.39034,2561.7,2561.5,0.39036]
[1726848485551,0.39038,2561.5,2561.3,0.3904]
[1726848485851,0.39041,2561.3,2561.1,5.732]
[1726848486040,0.4392,2561.2,2561.1,0.39042]
[1726848486257,4.73442,2561.2,2561.1,0.39042]
[1726848486465,4.73442,2561.2,2561.0,3.2078]
[1726848486466,0.39043,2561.1,2561.0,3.2078]
[1726848486674,4.73443,2561.2,2561.1,0.39043]
[1726848486842,4.344,2561.2,2561.1,0.39043]
[1726848487642,4.73442,2561.2,2561.1,0.39043]
[1726848487842,4.344,2561.2,2561.1,0.39043]
[1726848488150,0.86486,2561.6,2561.4,0.39038]
[1726848488444,0.39039,2561.4,2561.0,0.97612]
[1726848488647,0.39038,2561.5,2560.9,0.97617]
[1726848488848,0.4745,2561.6,2561.3,0.39039]
[1726848489145,1.45041,2561.6,2560.9,0.97617]
[1726848489457,0.39041,2561.3,2561.1,0.39042]
[1726848489651,0.39039,2561.4,2561.2,0.39041]
[1726848489853,0.39039,2561.4,2560.8,0.9762]
[1726848489854,0.39041,2561.3,2561.1,0.39042]
[1726848490051,3.5982,2561.4,2561.2,0.39042]
[1726848490552,0.39042,2561.3,2561.1,0.39042]
[1726848490847,0.39042,2561.2,2561.1,0.39042]
[1726848491052,0.39042,2561.2,2561.0,0.39044]
[1726848491248,0.39045,2561.0,2560.9,0.39046]
[1726848491548,0.39047,2560.9,2560.6,5.732]
[1726848491747,0.97613,2561.0,2560.7,0.39048]
[1726848491953,0.39049,2560.8,2560.7,0.39049]
[1726848492254,3.59829,2560.8,2560.7,0.39049]
[1726848492552,4.3329,2561.0,2560.8,0.39048]
[1726848492553,0.39047,2560.9,2560.8,0.39048]
[1726848492744,0.39047,2560.9,2560.5,0.97631]
[1726848493049,0.39047,2560.9,2560.7,0.39048]
[1726848493257,0.4281,2561.0,2560.6,0.3905]
[1726848493258,0.39049,2560.8,2560.6,0.3905]
[1726848493549,0.39049,2560.8,2560.7,0.39049]
[1726848493952,4.29529,2560.8,2560.6,0.3905]
[1726848494149,0.39049,2560.8,2560.7,0.39049]
[1726848494492,0.39048,2560.8,2560.4,0.97635]
[1726848494754,0.39048,2560.8,2560.7,0.39049]
[1726848494946,0.39049,2560.8,2560.4,0.97635]
[1726848495157,0.39049,2560.8,2560.2,10.1594]
[1726848495158,3.2078,2560.7,2560.2,10.1594]
[1726848495342,0.39051,2560.6,2560.2,16.47843]
[1726848495646,0.4397,2560.5,2560.4,0.39054]
[1726848496548,0.4397,2560.5,2560.4,1.3669]
[1726848497054,0.4397,2560.5,2560.4,0.39054]
[1726848497263,3.2078,2560.7,2560.4,0.39054]
[1726848497450,3.2078,2560.7,2560.6,0.39051]
[1726848497848,0.39048,2560.8,2560.7,0.39049]
[1726848498042,0.82207,2560.9,2560.7,0.39049]
[1726848498259,0.39048,2560.8,2560.7,0.39049]
[1726848498653,0.39049,2560.7,2560.6,0.3905]
[1726848498846,0.39048,2560.8,2560.6,0.39051]
[1726848499247,0.39048,2560.8,2560.7,0.39049]
[1726848499477,1.40777,2560.9,2560.3,1.44049]
[1726848499478,0.4316,2560.9,2560.8,0.39048]
[1726848500243,3.6524,2561.1,2561.0,0.39045]
[1726848500551,2.5442526,2561.7,2561.2,0.39042]
[1726848500552,0.4414,2561.3,2561.2,0.39042]
[1726848502861,1.52655156,2561.6,2561.5,0.39037]
[1726848503054,5.64615156,2561.7,2561.6,1.36626]
[1726848503353,1.5288494,2562.0,2561.6,0.9759]
[1726848503558,1.9191294,2562.1,2561.9,0.3903]
[1726848503756,1.5288494,2562.1,2561.9,0.3903]
[1726848503956,0.39031,2561.9,2561.4,3.2078]
[1726848504155,3.2078,2561.9,2561.7,0.39033]
[1726848504352,4.7366494,2561.9,2561.6,0.39035]
[1726848504657,0.39035,2561.7,2561.1,4.0667]
[1726848504852,0.39037,2561.5,2561.1,3.638]
[1726848505056,4.121,2561.6,2561.1,8.9408]
[1726848505258,0.39038,2561.5,2561.3,0.3904]
[1726848505456,1.5288494,2561.5,2561.1,8.9408]
[1726848505663,5.6498494,2561.6,2561.1,8.9408]
[1726848505849,4.121,2561.6,2561.4,0.39038]
[1726848506051,4.121,2561.6,2561.5,0.39037]
[1726848506249,5.6498494,2561.6,2561.4,0.39038]
[1726848506465,6.0402094,2561.6,2561.4,0.39038]
[1726848506766,5.6498494,2561.6,2561.5,0.39037]
[1726848507056,3.6899,2561.6,2561.5,0.39037]
[1726848507267,1.5288494,2561.8,2561.7,0.39034]
[1726848507459,1.9191794,2561.8,2561.3,0.976]
[1726848507659,1.5288494,2561.8,2561.3,0.976]
[1726848507863,1.9191594,2561.9,2561.7,0.39034]
[1726848508558,1.5288494,2561.9,2561.7,0.39034]
[1726848508763,1.9191594,2561.9,2561.7,0.39034]
[1726848508960,1.9191594,2561.9,2561.4,0.97597]
[1726848508961,1.5288494,2561.9,2561.4,0.97597]
[1726848509190,1.5288494,2561.9,2561.8,0.39033]
[1726848509463,1.5288494,2561.9,2561.7,0.39034]
[1726848509464,1.9191594,2561.9,2561.7,0.39034]
[1726848509767,5.5919494,2562.0,2561.8,0.39033]
[1726848510258,1.9938494,2562.0,2561.9,0.39031]
[1726848510465,1.5288494,2562.1,2562.0,0.3903]
[1726848510654,1.5288494,2562.2,2562.1,0.39028]
[1726848511560,4.7366494,2562.3,2562.1,0.39028]
[1726848511762,4.7366494,2562.3,2562.2,0.39027]
[1726848511958,3.2078,2562.3,2562.1,0.39027]
[1726848512164,3.2078,2562.3,2561.7,4.18366]
[1726848512165,1.53063327,2562.2,2561.7,4.18366]
[1726848512463,1.53063327,2562.2,2562.1,0.39028]
[1726848512969,1.53063327,2562.2,2561.7,4.18366]
[1726848512970,1.92090327,2562.2,2562.0,0.39028]
[1726848513465,1.53063327,2562.2,2561.7,4.18366]
[1726848513673,1.53063327,2562.2,2562.0,0.39029]
[1726848514163,1.92090327,2562.2,2561.9,0.3903]
[1726848514365,1.53063327,2562.2,2561.7,3.2078]
[1726848514560,1.53063327,2562.1,2561.7,3.2078]
[1726848514757,1.53063327,2562.1,2562.0,0.3903]
[1726848515064,4.73843327,2562.3,2561.8,0.97582]
[1726848515259,3.2078,2562.3,2562.2,0.39027]
[1726848515763,3.2078,2562.3,2561.9,1.41267]
[1726848515764,3.2078,2562.3,2562.1,0.39027]
[1726848515971,3.2078,2562.3,2562.2,0.39027]
[1726848516169,3.2078,2562.3,2562.1,0.39027]
[1726848516417,3.2078,2562.3,2562.2,0.39027]
[1726848516753,0.39024,2562.4,2561.9,0.4369]
[1726848517057,2.44993327,2562.5,2562.2,0.39026]
[1726848517254,1.53063327,2562.5,2562.0,0.97573]
[1726848517457,4.73843327,2562.6,2562.4,0.39023]
[1726848517660,2.01343327,2562.7,2562.6,0.3902]
[1726848517858,4.73843327,2562.9,2562.4,10.07058]
[1726848518062,3.2078,2562.9,2562.5,0.4729]
[1726848518375,2.86796327,2563.1,2562.8,0.39017]
[1726848518678,0.9472,2563.1,2562.9,0.39015]
[1726848518858,0.9472,2563.1,2562.5,0.4729]
[1726848519077,0.9472,2563.1,2562.9,0.39015]
[1726848519253,3.2078,2563.2,2562.6,4.18331]
[1726848519467,2.5442526,2563.6,2562.6,4.18331]
[1726848519468,1.53063327,2563.5,2562.8,0.97544]
[1726848519668,0.39007,2563.5,2563.1,0.39012]
[1726848520357,3.59786,2563.6,2563.2,0.39011]
[1726848520630,0.39009,2563.4,2563.0,0.39014]
[1726848520772,3.2078,2563.6,2562.7,3.37]
[1726848520974,3.2078,2563.6,2563.1,0.39012]
[1726848521268,0.39008,2563.4,2563.1,0.39012]
[1726848521670,0.39008,2563.5,2563.2,0.39011]
[1726848521863,3.2078,2563.6,2562.7,3.37]
[1726848522072,0.39008,2563.5,2563.2,0.39011]
[1726848522265,0.39009,2563.4,2563.1,0.39012]
[1726848522459,0.39009,2563.4,2562.7,4.34546]
[1726848522460,3.2078,2563.6,2562.7,4.34545]
[1726848522693,0.39007,2563.5,2563.2,0.3901]
[1726848522972,3.59791,2563.3,2563.0,0.39014]
[1726848523166,3.2078,2563.3,2562.9,5.725]
[1726848523372,3.5979,2563.3,2562.9,5.725]
[1726848523677,3.5979,2563.3,2563.0,0.39013]
[1726848523874,3.2078,2563.3,2563.0,0.39013]
[1726848524172,4.87689,2563.2,2562.6,3.2078]
[1726848524466,0.39017,2562.8,2562.6,0.39019]
[1726848524873,0.39015,2563.0,2562.8,0.39017]
[1726848525070,0.39015,2563.0,2562.7,0.39018]
[1726848525277,0.4503,2563.1,2562.5,5.724]
[1726848525465,0.4503,2563.1,2562.8,0.39017]
[1726848525466,0.39016,2563.0,2562.8,0.39017]
[1726848526170,0.84043,2563.1,2562.9,0.39015]
[1726848526370,0.4503,2563.1,2563.0,0.39014]
[1726848526571,0.84044,2563.1,2562.9,0.39015]
[1726848526876,0.4503,2563.1,2562.4,5.724]
[1726848527063,0.4503,2563.1,2562.5,0.39022]
[1726848527064,0.39019,2562.8,2562.5,0.39022]
[1726848527266,0.39017,2562.8,2562.4,5.724]
[1726848527459,0.97544,2562.8,2562.3,3.2078]
[1726848527668,0.4467,2562.7,2562.3,3.2078]
[1726848527922,0.39023,2562.5,2562.3,0.39024]
[1726848528079,0.4648,2562.4,2562.3,0.39024]
[1726848529070,3.2078,2562.6,2562.5,0.39022]
[1726848529266,0.4467,2562.7,2562.5,0.39022]
[1726848529267,0.83689,2562.7,2562.5,0.39022]
[1726848529472,0.83689,2562.7,2562.5,0.39021]
[1726848529668,0.4648,2562.9,2562.5,3.9024]
[1726848529867,0.4648,2562.9,2562.3,4.34563]
[1726848530170,0.4648,2562.9,2562.8,0.39017]
[1726848530569,0.4648,2562.9,2562.7,0.39018]
[1726848530779,0.4648,2562.9,2562.1,9.9075]
[1726848530977,0.39019,2562.7,2562.5,0.39021]
[1726848531374,1.44023,2562.9,2562.4,0.39022]
[1726848531375,0.39021,2562.6,2562.4,0.39022]
[1726848531577,3.59803,2562.5,2562.3,0.39025]
[1726848531781,0.97549,2562.7,2562.0,5.724]
[1726848531782,0.39025,2562.3,2562.0,5.724]
[1726848531977,3.2078,2562.4,2562.2,0.39026]
[1726848531978,3.59804,2562.4,2562.2,0.39026]
[1726848532569,3.2078,2562.4,2562.2,0.39026]
[1726848532973,3.59804,2562.4,2562.2,0.39026]
[1726848533173,3.59804,2562.4,2562.3,0.39025]
[1726848533482,3.59803,2562.4,2562.3,0.39025]
[1726848533686,0.39025,2562.3,2562.2,2.74]
[1726848533875,0.39021,2562.6,2562.4,0.39023]
[1726848534070,0.39022,2562.5,2562.3,0.39024]
[1726848534685,0.39023,2562.4,2561.9,9.91478]
[1726848534881,0.39023,2562.5,2562.3,0.39025]
[1726848535070,0.39021,2562.6,2562.1,2.74]
[1726848535276,0.85539,2562.7,2562.5,0.39022]
[1726848535479,0.4648,2562.9,2562.8,0.39017]
[1726848536209,0.86311,2563.2,2562.8,2.74]
[1726848536379,0.473,2563.2,2563.1,0.39013]
[1726848536783,0.86311,2563.2,2563.1,0.39013]
[1726848536988,0.473,2563.2,2563.1,0.39013]
[1726848537992,0.473,2563.2,2562.8,2.74]
[1726848538289,3.6808,2563.2,2562.9,0.39015]
[1726848538485,0.39014,2563.0,2562.9,0.39015]
[1726848538681,4.6561,2563.2,2562.6,8.464]
[1726848538887,0.39018,2562.8,2562.7,0.39019]
[1726848539189,3.2078,2562.9,2562.8,0.39017]
[1726848539986,3.59798,2562.9,2562.8,0.39017]
[1726848540190,4.06578,2562.9,2562.8,0.39017]
[1726848541500,0.39018,2562.8,2562.7,0.39018]
[1726848541702,0.3902,2562.7,2562.6,0.3902]
[1726848541894,0.4779,2562.7,2562.6,0.3902]
[1726848542210,0.4779,2562.7,2562.6,1.36572]
[1726848542389,0.39014,2563.1,2563.0,0.39013]
[1726848542704,0.39015,2563.0,2562.6,0.97552]
[1726848542895,0.39017,2562.9,2562.8,0.39017]
[1726848543306,3.2078,2563.0,2562.9,0.39016]
[1726848543797,3.59794,2563.0,2562.9,0.39016]
[1726848547405,3.2078,2563.0,2562.9,0.39016]
[1726848547613,3.59794,2563.0,2562.9,0.39016]
[1726848548705,3.2078,2563.0,2562.9,0.39016]
[1726848549208,3.59794,2563.0,2562.9,0.39016]
[1726848550103,0.39014,2563.0,2562.9,0.39016]
[1726848550306,1.53063327,2563.4,2563.3,0.3901]
[1726848550514,0.97518,2563.5,2563.0,3.37]
[1726848550819,0.39011,2563.3,2563.2,0.3901]
[1726848551925,3.59791,2563.3,2563.2,0.3901]
[1726848553105,0.87459,2563.4,2563.3,0.3901]
[1726848554308,0.4845,2563.4,2563.3,0.3901]
[1726848554514,1.92071327,2563.5,2563.4,0.39008]
[1726848554515,1.53063327,2563.5,2563.4,0.39008]
[1726848554811,0.39007,2563.5,2563.4,0.39008]
[1726848555201,0.39008,2563.5,2563.4,0.39008]
[1726848555401,1.92071327,2563.5,2563.4,0.39008]
[1726848555704,1.53063327,2563.6,2563.5,0.39007]
[1726848556112,1.53063327,2563.8,2563.5,4.87598]
[1726848556309,3.2078,2563.9,2563.8,0.39002]
[1726848556701,2.01033327,2564.0,2563.9,0.39001]
[1726848557145,0.4797,2564.0,2563.9,0.39001]
[1726848560004,0.4797,2564.0,2563.9,3.13001]
[1726848561525,0.39007,2563.5,2563.3,0.39009]
[1726848561816,0.86798,2563.4,2563.2,0.3901]
[1726848562017,0.4779,2563.4,2563.1,5.715]
[1726848562221,0.39012,2563.2,2563.0,0.39014]
[1726848562526,0.39014,2563.1,2562.8,5.715]
[1726848562735,0.39015,2563.0,2562.8,6.10517]
[1726848563018,0.39014,2563.0,2562.8,6.10516]
[1726848563321,4.73630777,2563.2,2562.9,2.74]
[1726848563519,3.2078,2563.2,2563.0,0.39014]
[1726848563716,3.2078,2563.2,2563.1,3.13013]
[1726848564014,0.39011,2563.2,2562.9,3.13015]
[1726848564219,0.39014,2563.1,2562.9,3.13016]